bitfinex/quotes_ETHUSD_20260209
["timestamp","ask_amount","ask_price","bid_price","bid_amount"]
[1770676966181,4.71810016,2119.6,2119.2,1.17969044]
[1770676967348,4.71810016,2119.5,2119.2,1.17969044]
[1770676967550,4.71810016,2119.6,2119.2,1.17969044]
[1770676968548,6.48875423,2119.3,2118.8,0.001]
[1770676968865,6.48875423,2119.1,2118.8,0.001]
[1770676969266,6.48875423,2119.1,2119.0,0.001]
[1770676970353,8.6812914,2119.1,2119.0,0.001]
[1770676972191,6.61599636,2118.9,2118.6,0.001]
[1770676973085,3.61610016,2118.8,2118.6,0.001]
[1770676973285,10.23209652,2118.8,2118.6,0.001]
[1770676975386,6.61599636,2118.8,2118.6,0.001]
[1770676976573,3.61610016,2118.7,2118.6,0.001]
[1770676980090,6.61599636,2118.9,2118.6,0.001]
[1770676980587,6.61599636,2118.9,2118.8,1.1]
[1770676980787,7.79576539,2119.1,2118.8,1.1]
[1770676981288,7.79576539,2119.1,2118.8,1.101]
[1770676981683,7.79574657,2119.1,2118.8,1.101]
[1770676981866,0.002,2118.9,2118.8,1.101]
[1770676982893,6.61599636,2118.7,2118.5,0.001]
[1770676983092,7.62807707,2118.6,2118.1,0.001]
[1770676983398,15.82625133,2118.5,2118.1,0.001]
[1770676985396,6.61599636,2118.4,2118.1,0.001]
[1770676986402,7.79603423,2118.6,2118.1,0.001]
[1770676987294,7.79602475,2118.6,2118.1,0.001]
[1770676987481,6.61599636,2118.6,2118.1,0.001]
[1770676987682,7.79602408,2118.6,2118.1,0.001]
[1770676989372,6.61599636,2118.4,2118.1,0.001]
[1770676991269,6.61599636,2118.2,2118.1,0.001]
[1770676991475,7.7960766,2118.5,2118.1,0.001]
[1770676995079,7.7960766,2118.5,2118.3,0.001]
[1770676995279,7.79813231,2118.4,2118.3,0.001]
[1770676996986,0.002,2118.4,2118.3,0.001]
[1770676997188,1.18213595,2118.4,2118.3,0.001]
[1770676999206,7.79813231,2118.4,2118.3,0.001]
[1770677000311,7.79813231,2118.4,2118.1,0.001]
[1770677005505,0.002,2118.4,2118.1,0.001]
[1770677005710,0.002,2118.4,2118.1,6.11501268]
[1770677006918,0.002,2118.4,2118.1,7.29530273]
[1770677008133,0.002,2118.4,2118.3,0.001]
[1770677015406,0.002,2118.4,2118.3,6.11501268]
[1770677015918,0.002,2118.9,2118.3,6.11501268]
[1770677016118,1.01162808,2118.8,2118.3,6.11501268]
[1770677016303,0.002,2118.9,2118.3,6.11501268]
[1770677016798,0.002,2118.9,2118.4,1.18013595]
[1770677019205,0.002,2118.9,2118.4,7.29414863]
[1770677020026,0.002,2118.7,2118.4,7.29414863]
[1770677021037,0.002,2119.2,2118.6,7.29403722]
[1770677026418,0.002,2119.2,2118.6,7.3503541]
[1770677028442,0.002,2119.2,2118.8,6.11401268]
[1770677028621,0.002,2119.2,2118.9,6.11401268]
[1770677029413,0.002,2119.4,2119.0,7.29381447]
[1770677029748,0.002,2119.8,2119.2,6.18249951]
[1770677029922,0.002,2119.8,2119.3,3.297]
[1770677030130,0.002,2119.8,2119.3,9.47949951]
[1770677031848,0.002,2119.8,2119.4,1.17957912]
[1770677035225,0.002,2119.8,2119.4,7.36207863]
[1770677040335,0.002,2119.8,2119.3,1.17963478]
[1770677040537,0.002,2119.8,2119.3,7.36213429]
[1770677041626,0.002,2119.8,2119.4,14.20893322]
[1770677041856,0.002,2119.8,2119.4,6.18249951]
[1770677042433,0.002,2119.8,2119.4,7.36202851]
[1770677043332,0.002,2120.1,2119.5,11.32243371]
[1770677043523,0.002,2120.1,2119.8,8.02643371]
[1770677045035,0.002,2120.1,2119.8,9.20578286]
[1770677045449,0.002,2120.1,2119.8,8.02643371]
[1770677047060,0.002,2120.3,2119.8,18.68427499]
[1770677047235,0.002,2120.2,2119.8,12.50177548]
[1770677047435,0.002,2120.2,2119.8,1.17934177]
[1770677052443,6.12559532,2120.3,2119.8,1.17934177]
[1770677052444,0.002,2120.1,2119.8,1.17934177]
[1770677057060,0.002,2120.1,2120.0,0.001]
[1770677057462,6.12559532,2120.3,2120.0,0.001]
[1770677057634,0.002,2120.1,2120.0,0.001]
[1770677058157,6.12559532,2120.2,2120.0,0.001]
[1770677058359,1.01382601,2120.1,2120.0,0.001]
[1770677060072,1.01782601,2120.2,2120.0,0.001]
[1770677061567,1.01782601,2120.1,2120.0,0.001]
[1770677063273,7.64867686,2120.1,2120.0,0.001]
[1770677063875,1.01782601,2120.1,2120.0,0.001]
[1770677065474,6.63085085,2120.2,2120.0,0.001]
[1770677065663,7.64867686,2120.2,2120.0,0.001]
[1770677066164,1.01782601,2120.2,2120.0,0.001]
[1770677067374,7.64867686,2120.2,2120.0,0.001]
[1770677068271,6.63085085,2120.1,2120.0,0.001]
[1770677068448,7.64867686,2120.1,2120.0,0.001]
[1770677068650,7.64867686,2120.1,2119.6,1.18042646]
[1770677068651,1.01782601,2120.0,2119.6,0.001]
[1770677069873,6.63085085,2119.9,2119.6,0.001]
[1770677070042,1.01982601,2120.0,2119.6,0.001]
[1770677070648,2.19907714,2120.0,2119.6,0.001]
[1770677070849,1.01982601,2120.0,2119.6,0.001]
[1770677071259,8.82994508,2120.0,2119.6,0.001]
[1770677071978,1.01275419,2119.9,2119.6,0.001]
[1770677072178,8.82994508,2120.0,2119.6,0.001]
[1770677072353,1.01277938,2119.9,2119.6,0.001]
[1770677072551,8.82994508,2120.0,2119.6,0.001]
[1770677072786,2.1921613,2119.9,2119.6,0.001]
[1770677072956,2.19911094,2120.0,2119.6,0.001]
[1770677073155,1.01283669,2119.9,2119.6,0.001]
[1770677073354,2.19911094,2120.0,2119.6,0.001]
[1770677073653,7.64385334,2119.9,2119.6,0.001]
[1770677073866,8.90584066,2119.8,2119.4,0.001]
[1770677074080,6.63085085,2119.6,2119.1,0.001]
[1770677074284,6.63085085,2119.4,2119.1,0.001]
[1770677074580,6.63085085,2119.2,2119.1,0.001]
[1770677074787,7.81054129,2119.2,2119.1,0.001]
[1770677074968,8.8283673,2119.2,2119.1,0.001]
[1770677075168,8.8283673,2119.2,2118.9,0.001]
[1770677075369,1.01782601,2119.1,2118.9,0.001]
[1770677076186,7.64867686,2119.1,2118.9,0.001]
[1770677076770,7.81065264,2119.0,2118.6,0.001]
[1770677076964,6.63085085,2118.9,2118.6,0.001]
[1770677078188,7.64867686,2118.8,2118.6,0.001]
[1770677078788,6.63085085,2118.6,2118.3,0.001]
[1770677080285,6.63085085,2118.4,2118.1,0.001]
[1770677080685,1.01782601,2118.3,2118.1,0.001]
[1770677081291,1.01782601,2118.2,2118.1,0.001]
[1770677083275,7.64867686,2118.2,2118.1,0.001]
[1770677085889,1.01782601,2118.2,2118.1,0.001]
[1770677087071,7.64867686,2118.2,2118.1,0.001]
[1770677087397,6.63085085,2118.2,2118.1,0.001]
[1770677087696,7.64867686,2118.2,2118.1,0.001]
[1770677089100,6.63085085,2118.1,2117.7,0.001]
[1770677089278,7.64767686,2118.1,2117.7,0.001]
[1770677090808,7.14627443,2118.1,2117.7,0.001]
[1770677091098,8.32660909,2118.1,2117.7,0.001]
[1770677091681,1.01682601,2118.1,2117.7,0.001]
[1770677095304,2.19713697,2118.1,2117.7,0.001]
[1770677095469,1.18031096,2118.1,2117.7,0.001]
[1770677095664,1.01682601,2118.1,2117.7,0.001]
[1770677095869,1.01682601,2118.1,2117.9,0.001]
[1770677096403,6.12944842,2118.1,2117.7,0.001]
[1770677096611,1.01582601,2118.0,2117.7,0.001]
[1770677098617,6.12944842,2117.9,2117.7,0.001]
[1770677098994,1.01582601,2117.8,2117.7,0.001]
[1770677102002,1.01582601,2117.8,2117.5,0.001]
[1770677102003,6.12944842,2117.9,2117.5,0.001]
[1770677102198,6.12944842,2117.8,2117.5,0.001]
[1770677102400,7.14427443,2117.8,2117.4,0.001]
[1770677102589,1.01482601,2117.7,2117.4,0.001]
[1770677102916,1.01482601,2117.6,2117.4,0.001]
[1770677103107,7.14427443,2117.8,2117.4,0.001]
[1770677103313,1.01482601,2117.7,2117.4,0.001]
[1770677103819,1.01482601,2117.6,2117.4,0.001]
[1770677106502,7.30992219,2117.8,2117.4,0.001]
[1770677106824,1.01482601,2117.7,2117.4,0.001]
[1770677107198,1.01482601,2117.6,2117.4,0.001]
[1770677110919,1.01482601,2117.5,2117.4,0.001]
[1770677111116,1.01482601,2117.7,2117.4,0.001]
[1770677111632,1.01482601,2117.6,2117.4,0.001]
[1770677117614,1.01482601,2117.5,2117.4,0.001]
[1770677118218,8.57389292,2117.9,2117.4,0.001]
[1770677118421,8.15616546,2117.8,2117.4,0.001]
[1770677118631,7.14133945,2117.7,2117.4,0.001]
[1770677118934,7.14427443,2117.7,2117.4,0.001]
[1770677119234,1.01482601,2117.6,2117.4,0.001]
[1770677119616,7.64377928,2117.6,2117.4,0.001]
[1770677120215,1.01482601,2117.6,2117.4,0.001]
[1770677121033,1.01682601,2117.6,2117.4,0.001]
[1770677123736,7.24302015,2117.6,2117.4,0.001]
[1770677124736,1.01682601,2117.6,2117.4,0.001]
[1770677125539,1.01482601,2117.5,2117.4,0.001]
[1770677126539,6.22819414,2117.6,2117.2,0.001]
[1770677126922,0.002,2117.6,2117.2,0.001]
[1770677127919,0.002,2117.9,2117.3,8.03756857]
[1770677128120,0.002,2117.9,2117.4,3.299]
[1770677128340,0.002,2117.9,2117.3,8.03756857]
[1770677128642,0.002,2117.9,2117.4,3.299]
[1770677128817,0.002,2118.1,2117.4,3.299]
[1770677129016,1.01425701,2118.0,2117.4,3.299]
[1770677129223,0.002,2118.1,2117.4,3.299]
[1770677129632,0.002,2118.1,2117.5,1.18063754]
[1770677130749,0.002,2118.5,2117.9,8.03756857]
[1770677131049,0.002,2118.5,2118.1,14.57039734]
[1770677131224,0.002,2118.5,2118.1,8.03756857]
[1770677131636,0.002,2118.5,2118.2,1.18024737]
[1770677133339,0.002,2118.5,2118.2,7.71287598]
[1770677134732,0.002,2118.5,2118.2,1.18024737]
[1770677134950,0.002,2118.5,2118.0,8.02024226]
[1770677135150,0.002,2118.5,2118.1,1.18025622]
[1770677136045,0.002,2118.5,2118.1,7.71266054]
[1770677136752,0.002,2118.5,2118.3,1.1]
[1770677138050,0.002,2118.5,2118.4,1.18013595]
[1770677145245,0.002,2118.7,2118.4,1.18013595]
[1770677145454,0.002,2118.9,2118.4,7.71163523]
[1770677146068,7.49156656,2119.5,2118.5,6.53134867]
[1770677146333,6.22619414,2119.5,2118.7,6.53134867]
[1770677146742,0.002,2119.4,2118.7,6.53134867]
[1770677146983,0.002,2119.4,2118.8,1.17991315]
[1770677147461,0.002,2119.4,2118.8,7.71113636]
[1770677148346,6.22619414,2119.3,2118.7,1.17992702]
[1770677150343,6.22619414,2119.3,2118.9,1.1]
[1770677151171,6.22619414,2119.3,2119.0,1.17980179]
[1770677151675,0.002,2119.4,2119.0,1.17980179]
[1770677151878,0.002,2119.4,2119.0,7.43085632]
[1770677152037,0.002,2119.4,2119.0,10.72785632]
[1770677152236,6.09161718,2119.8,2119.1,6.25105453]
[1770677152571,6.09161718,2119.8,2119.0,4.47680179]
[1770677152901,6.09161718,2119.8,2119.0,10.72785632]
[1770677153235,6.09161718,2119.8,2119.0,4.47680179]
[1770677153441,7.27097437,2119.8,2119.0,4.47680179]
[1770677153651,6.09161718,2119.8,2119.0,4.47680179]
[1770677154055,0.002,2119.8,2119.2,6.25105453]
[1770677154873,0.002,2119.8,2119.4,14.27642307]
[1770677155379,0.002,2119.8,2119.5,1.17952347]
[1770677155547,0.002,2119.8,2119.5,7.430578]
[1770677155743,0.002,2120.0,2119.5,7.430578]
[1770677156547,0.002,2120.2,2119.5,7.430578]
[1770677156758,6.09161718,2120.2,2119.5,1.17952347]
[1770677156954,6.08961718,2120.1,2119.5,1.17952347]
[1770677157153,0.002,2120.2,2119.6,6.25105453]
[1770677157478,0.002,2120.2,2119.8,6.25105453]
[1770677157779,0.002,2120.2,2119.7,1.17941218]
[1770677158453,0.002,2120.2,2119.7,7.43046671]
[1770677158858,0.002,2120.3,2119.7,7.43046671]
[1770677159280,0.002,2120.0,2119.7,7.43046671]
[1770677159589,6.09161718,2120.3,2119.7,1.17941218]
[1770677160395,5.07432231,2120.3,2119.7,1.17941218]
[1770677162976,6.09161718,2120.5,2119.7,7.43046671]
[1770677163191,0.002,2120.5,2119.8,3.296]
[1770677163354,0.002,2120.5,2120.0,7.43029981]
[1770677164590,0.002,2120.5,2120.0,1.17924528]
[1770677165362,0.002,2120.5,2119.9,10.96803566]
[1770677167163,6.09161718,2120.5,2119.9,4.71698113]
[1770677167385,0.002,2120.5,2119.9,10.96803566]
[1770677167567,0.002,2120.5,2120.0,6.25105453]
[1770677168175,0.002,2120.5,2120.1,1.1]
[1770677168674,0.002,2120.5,2119.9,10.96803566]
[1770677169374,0.002,2120.5,2120.1,1.17918966]
[1770677170396,0.002,2120.5,2120.1,7.43024419]
[1770677171196,0.002,2121.1,2120.1,7.43024419]
[1770677171387,6.08961718,2121.0,2120.1,7.43024419]
[1770677171705,6.08961718,2121.0,2120.2,0.001]
[1770677171916,0.002,2120.3,2120.2,0.001]
[1770677172111,0.002,2121.1,2120.2,0.36107641]
[1770677172112,6.08961718,2120.8,2120.2,0.36107641]
[1770677172421,0.002,2120.5,2120.3,0.36007641]
[1770677173085,0.002,2120.5,2120.2,0.001]
[1770677178717,0.002,2120.5,2120.2,6.25205453]
[1770677179097,0.002,2120.5,2120.2,0.001]
[1770677180700,0.002,2120.5,2120.2,6.32928783]
[1770677182716,0.002,2120.5,2120.3,1.17907843]
[1770677184903,0.002,2120.5,2120.2,0.001]
[1770677185112,0.002,2120.3,2120.2,0.001]
[1770677185422,0.002,2120.5,2120.3,0.001]
[1770677195048,6.71765741,2120.3,2119.4,0.001]
[1770677195329,6.71765741,2120.0,2119.4,0.001]
[1770677195497,6.71765741,2119.8,2119.4,0.001]
[1770677195700,7.73290188,2119.7,2119.4,0.001]
[1770677196011,1.01524447,2119.6,2119.4,0.001]
[1770677196206,8.01499725,2119.7,2119.4,0.001]
[1770677196410,8.01499725,2119.5,2119.2,0.001]
[1770677196725,7.7313699,2119.4,2119.2,0.001]
[1770677196925,6.71765741,2119.4,2119.2,0.001]
[1770677197612,6.71765741,2119.4,2118.5,1.18003553]
[1770677197613,6.71765741,2119.2,2118.5,1.18003553]
[1770677198030,1.0125802,2119.1,2118.6,1.18201832]
[1770677198325,10.01265741,2119.3,2118.6,1.18201832]
[1770677198531,6.71765741,2119.2,2118.7,0.002]
[1770677199004,7.89736099,2119.2,2118.7,0.002]
[1770677199426,6.71765741,2119.2,2118.7,0.002]
[1770677199628,7.89735443,2119.2,2118.7,0.002]
[1770677200004,6.71765741,2119.2,2118.7,0.002]
[1770677200309,7.89734878,2119.2,2118.7,0.002]
[1770677200503,6.71765741,2119.2,2118.7,0.002]
[1770677201218,6.71765741,2119.2,2118.4,7.50838319]
[1770677201418,6.71765741,2119.2,2118.5,0.002]
[1770677201627,6.71765741,2119.2,2118.6,1.1]
[1770677201937,6.71765741,2119.2,2118.6,1.102]
[1770677202133,6.71765741,2119.2,2118.7,0.002]
[1770677202518,6.71765741,2119.2,2118.8,0.002]
[1770677202718,6.71765741,2119.2,2118.7,0.002]
[1770677203234,6.71765741,2119.2,2118.7,1.18196884]
[1770677204111,3.295,2119.3,2118.7,1.18196884]
[1770677204519,6.71765741,2119.4,2118.7,1.18196884]
[1770677204812,6.71765741,2119.4,2118.7,7.51025667]
[1770677205354,6.71765741,2119.6,2118.7,7.51025667]
[1770677207515,7.89713665,2119.6,2118.7,7.50825667]
[1770677208036,7.89713665,2119.6,2118.8,6.33028783]
[1770677209024,6.71765741,2119.6,2118.8,6.33028783]
[1770677209206,7.89712897,2119.6,2118.9,1.17985747]
[1770677209410,7.89712897,2119.6,2118.8,6.33028783]
[1770677209730,7.89712897,2119.6,2118.8,0.002]
[1770677210035,6.92329767,2119.3,2118.8,1.18191059]
[1770677211523,6.92329767,2119.3,2118.8,0.002]
[1770677213635,0.002,2119.4,2118.8,0.002]
[1770677213838,0.002,2119.4,2118.8,6.57789848]
[1770677214840,6.92529767,2119.4,2118.8,6.57789848]
[1770677215047,6.92329767,2119.3,2118.8,0.002]
[1770677215237,6.92329767,2119.3,2118.7,0.001]
[1770677215457,6.92329767,2119.3,2118.7,1.18094578]
[1770677217742,6.92329767,2119.3,2118.7,0.001]
[1770677218843,6.92329767,2119.3,2118.8,0.002]
[1770677221041,6.92529767,2119.4,2118.8,0.002]
[1770677221648,0.002,2119.4,2118.8,6.57789848]
[1770677221850,6.92529767,2119.4,2119.0,0.001]
[1770677222153,0.002,2119.1,2119.0,0.001]
[1770677222562,0.002,2119.3,2119.0,0.001]
[1770677225222,1.01667091,2119.2,2119.0,0.001]
[1770677225452,1.01667091,2119.1,2119.0,0.001]
[1770677228152,1.01667091,2119.1,2119.0,1.18080179]
[1770677230655,6.92529767,2119.4,2119.0,0.001]
[1770677231361,8.6168435,2119.4,2119.0,0.001]
[1770677234533,6.92329767,2119.3,2119.0,0.001]
[1770677234733,6.92329767,2119.3,2118.7,0.001]
[1770677234734,6.92329767,2119.2,2118.7,0.001]
[1770677235542,6.92529767,2119.2,2118.7,0.001]
[1770677235759,6.92529767,2119.2,2119.0,0.001]
[1770677237871,8.01499725,2119.1,2118.7,0.001]
[1770677238160,8.01499725,2119.1,2118.3,0.001]
[1770677238161,6.92329767,2118.8,2118.3,0.001]
[1770677238453,6.92329767,2118.4,2118.1,0.001]
[1770677238658,6.92329767,2118.2,2117.6,0.001]
[1770677238985,6.92329767,2117.9,2117.2,0.001]
[1770677239134,6.92329767,2117.2,2116.8,0.001]
[1770677239954,8.01499725,2117.3,2116.8,0.001]
[1770677240136,1.69623137,2117.7,2117.1,1.18084782]
[1770677240340,14.71978881,2117.9,2117.1,7.58617351]
[1770677240341,18.01678881,2117.9,2117.1,7.58617351]
[1770677240648,10.00179156,2117.9,2117.1,7.58617351]
[1770677241242,6.70479156,2117.8,2117.1,1.18084782]
[1770677243238,6.70479156,2117.8,2117.0,4.72365743]
[1770677243839,6.70479156,2117.8,2117.0,11.12898312]
[1770677244963,6.70479156,2117.8,2117.0,4.72365743]
[1770677246064,6.70479156,2117.8,2116.9,7.58624208]
[1770677246451,6.70479156,2117.8,2117.1,0.5]
[1770677247340,6.70479156,2117.8,2117.2,1.18080483]
[1770677247540,3.297,2117.9,2117.3,0.001]
[1770677247740,0.002,2117.6,2117.3,0.001]
[1770677256162,6.70679156,2117.6,2117.3,0.001]
[1770677257957,0.002,2117.6,2117.3,0.001]
[1770677258684,6.70679156,2117.6,2117.3,0.001]
[1770677259062,0.002,2117.6,2117.3,0.001]
[1770677260674,0.002,2117.6,2117.4,0.001]
[1770677260873,6.70479156,2117.3,2117.0,0.001]
[1770677261262,6.70479156,2117.3,2117.1,0.001]
[1770677261455,6.70479156,2117.3,2117.0,0.001]
[1770677262584,7.88559639,2117.2,2117.0,0.001]
[1770677263584,7.71451996,2117.1,2117.0,0.001]
[1770677264286,7.71451996,2117.1,2116.8,0.001]
[1770677264588,6.70479156,2116.9,2116.8,0.001]
[1770677264957,7.88569454,2117.1,2116.8,0.002]
[1770677265180,7.71518284,2117.0,2116.8,0.002]
[1770677265385,6.70479156,2117.0,2116.8,0.002]
[1770677265580,6.70479156,2117.0,2116.8,0.001]
[1770677266383,8.89794617,2116.9,2116.8,0.001]
[1770677267483,6.70479156,2116.8,2116.5,0.001]
[1770677267784,2.19315461,2116.9,2116.5,0.002]
[1770677267785,7.716974,2116.7,2116.5,0.002]
[1770677267955,1.01218244,2116.6,2116.5,0.002]
[1770677269366,7.716974,2116.6,2116.5,0.002]
[1770677270165,7.716974,2116.6,2116.5,0.001]
[1770677271974,1.01218244,2116.6,2116.5,0.002]
[1770677272285,7.44544389,2116.7,2116.5,0.001]
[1770677272501,7.44544389,2116.6,2116.3,0.001]
[1770677272685,1.01218244,2116.5,2116.4,0.001]
[1770677274892,1.01218244,2116.5,2116.3,0.001]
[1770677275093,1.01218244,2116.4,2116.3,0.002]
[1770677275398,1.01218244,2116.4,2116.3,0.001]
[1770677275562,1.01118244,2116.4,2116.3,0.001]
[1770677281578,1.01118244,2116.4,2115.6,1.18269056]
[1770677281579,6.43326145,2116.3,2115.6,1.18269056]
[1770677281900,6.43326145,2116.2,2115.6,0.001]
[1770677282276,6.43326145,2116.2,2115.6,1.18269455]
[1770677282480,6.43326145,2116.2,2115.6,0.001]
[1770677283403,7.61462431,2116.2,2115.6,1.18268486]
[1770677284319,7.61462431,2116.2,2115.6,0.001]
[1770677286414,7.61462431,2116.2,2115.8,0.001]
[1770677286779,6.43326145,2116.1,2115.8,0.001]
[1770677287405,7.61473593,2116.0,2115.8,0.001]
[1770677287608,1.01036752,2115.9,2115.8,0.001]
[1770677288039,7.44362897,2115.9,2115.8,0.001]
[1770677288196,7.44362897,2115.9,2115.6,0.001]
[1770677288409,1.18147448,2116.0,2115.6,0.001]
[1770677288410,6.43326145,2115.7,2115.6,0.001]
[1770677288592,1.01036752,2115.7,2115.6,0.001]
[1770677288923,1.01036752,2115.7,2115.1,6.69581866]
[1770677288924,7.44362897,2115.7,2115.1,6.69581866]
[1770677289085,1.01036752,2115.6,2115.1,6.69581866]
[1770677289408,1.01036752,2115.6,2115.2,1.18192133]
[1770677290199,1.01036752,2115.6,2115.1,7.87775605]
[1770677292522,7.44362897,2115.6,2115.1,1.18196953]
[1770677292723,1.01036752,2115.5,2115.1,1.18196953]
[1770677293294,1.01036752,2115.5,2115.1,7.87778819]
[1770677293494,12.17955785,2115.8,2115.1,7.87778819]
[1770677293696,1.0108443,2115.7,2115.1,7.87778819]
[1770677294017,1.0108443,2115.6,2115.1,7.87778819]
[1770677294222,1.0108443,2115.5,2115.1,7.87778819]
[1770677294424,6.43326145,2115.7,2115.1,7.87778819]
[1770677294603,1.01084628,2115.6,2115.1,7.87778819]
[1770677294803,1.01084628,2115.5,2115.1,7.87778819]
[1770677295003,7.61490967,2115.7,2115.1,7.87778819]
[1770677295320,1.01083965,2115.6,2115.1,1.18196953]
[1770677295533,1.01083965,2115.5,2115.1,1.18196953]
[1770677295720,7.61490967,2115.7,2115.1,1.18196953]
[1770677296016,1.01091621,2115.6,2115.1,1.18196953]
[1770677296217,1.01091621,2115.5,2115.1,7.87778819]
[1770677296516,1.26366862,2116.0,2115.1,7.87778819]
[1770677296723,1.01119687,2115.9,2115.1,7.87778819]
[1770677297020,1.01119687,2115.8,2115.1,7.87778819]
[1770677297224,1.26366862,2116.1,2115.2,6.69581866]
[1770677297518,1.26366862,2116.2,2115.4,6.69581866]
[1770677297727,1.26366862,2116.3,2115.4,6.69581866]
[1770677298217,7.69693007,2116.3,2115.4,6.69581866]
[1770677298424,1.26366862,2116.3,2115.4,6.69581866]
[1770677298597,1.26366862,2116.3,2115.6,6.69581866]
[1770677299818,0.002,2115.7,2115.6,6.69581866]
[1770677300023,1.26566862,2116.4,2115.6,6.89012362]
[1770677300319,0.002,2115.9,2115.6,6.89012362]
[1770677300535,0.002,2116.4,2115.8,6.6430147]
[1770677302615,0.002,2116.4,2115.9,1.18153031]
[1770677302997,0.002,2116.4,2115.9,7.82454501]
[1770677312528,0.002,2116.2,2115.9,7.82454501]
[1770677312728,0.002,2116.4,2115.9,7.82454501]
[1770677313434,0.002,2116.4,2116.1,6.6430147]
[1770677315125,0.002,2116.4,2116.2,7.82437752]
[1770677316218,0.002,2116.6,2116.3,6.6430147]
[1770677316811,0.002,2116.6,2116.2,1.18136282]
[1770677317017,0.002,2116.6,2116.2,7.82437752]
[1770677317233,0.002,2116.6,2116.2,15.87062624]
[1770677321123,1.26392904,2117.1,2116.3,6.6430147]
[1770677321321,7.90802474,2117.0,2116.3,6.6430147]
[1770677321523,1.00913817,2116.9,2116.4,1.18125118]
[1770677322749,1.26392904,2117.2,2116.7,6.6430147]
[1770677322950,0.002,2117.3,2116.7,6.6430147]
[1770677323118,0.002,2117.3,2116.9,6.6430147]
[1770677323542,0.002,2117.3,2117.0,1.18091639]
[1770677326727,0.002,2117.3,2116.7,1.1810589]
[1770677327049,7.04298391,2117.3,2116.7,1.1810589]
[1770677327237,8.30583676,2117.3,2116.7,1.1810589]
[1770677327553,8.30583676,2117.3,2116.8,1.18102754]
[1770677327745,8.30583676,2117.3,2116.6,4.72454154]
[1770677328135,7.09539868,2117.2,2116.6,4.72454154]
[1770677328337,2.4456063,2117.3,2116.6,11.36755624]
[1770677328527,1.26485285,2117.3,2116.6,11.36755624]
[1770677329753,1.26285285,2117.2,2116.6,11.36755624]
[1770677331657,1.26285285,2117.2,2116.7,7.24478366]
[1770677331842,1.26285285,2117.2,2116.8,1.18102796]
[1770677333256,7.88531438,2117.2,2116.7,1.18107956]
[1770677334650,9.06612684,2117.2,2116.6,1.18112583]
[1770677334839,7.63538652,2117.1,2116.6,1.18112583]
[1770677335037,1.01292499,2117.0,2116.6,1.18112583]
[1770677335356,1.01292499,2116.9,2116.6,1.18112583]
[1770677335555,1.01279751,2116.8,2116.5,1.18116743]
[1770677335756,1.26285285,2117.0,2116.4,11.96970117]
[1770677335757,1.01279751,2116.7,2116.4,1.18121429]
[1770677335938,7.88531438,2117.0,2116.5,1.18119252]
[1770677336137,1.01273196,2116.9,2116.5,11.96954606]
[1770677336328,1.01273196,2116.8,2116.5,11.96954606]
[1770677336528,1.01273196,2116.7,2116.6,7.24478366]
[1770677336825,1.01273196,2116.7,2116.5,4.7247624]
[1770677337032,1.26285285,2117.0,2116.5,4.7247624]
[1770677337357,1.01390117,2116.9,2116.5,1.18119536]
[1770677337550,1.01390117,2116.8,2116.4,8.42599365]
[1770677337731,1.01390117,2116.7,2116.4,8.42599365]
[1770677338076,1.26285285,2117.0,2116.4,8.42599365]
[1770677338234,1.01383085,2116.9,2116.4,8.42599365]
[1770677338557,1.01383085,2116.8,2116.4,8.42599365]
[1770677338737,1.01383085,2116.7,2116.3,1.18227998]
[1770677339057,1.01383085,2116.6,2116.3,1.18227998]
[1770677339259,1.01383085,2116.5,2116.3,8.42706364]
[1770677339454,1.26285285,2116.8,2116.4,1.18125118]
[1770677339653,1.01382651,2116.7,2116.4,1.18125118]
[1770677339852,1.01382651,2116.6,2116.3,1.1822638]
[1770677340055,1.26285285,2116.8,2116.4,1.18125118]
[1770677340433,1.26285285,2116.8,2116.4,8.42603484]
[1770677340772,1.26285285,2116.9,2116.4,8.42603484]
[1770677341750,1.26285285,2116.8,2116.4,8.42603484]
[1770677343066,1.26285285,2116.8,2116.4,1.18125118]
[1770677343758,1.26285285,2116.8,2116.4,8.42603484]
[1770677348855,1.26285285,2116.5,2116.3,0.001]
[1770677352367,1.01318075,2116.4,2116.3,0.001]
[1770677356371,1.01309504,2116.4,2116.3,0.001]
[1770677358058,1.01309504,2116.4,2116.0,0.001]
[1770677358280,1.01309504,2116.3,2116.0,0.001]
[1770677358460,9.07004056,2116.5,2116.0,0.001]
[1770677358651,1.01331529,2116.4,2116.0,0.001]
[1770677358855,1.01331529,2116.3,2116.0,0.001]
[1770677359053,14.07004056,2116.5,2116.0,0.001]
[1770677359274,1.01354579,2116.4,2116.0,0.001]
[1770677359480,1.01354579,2116.3,2116.0,0.001]
[1770677359667,1.01370713,2116.2,2116.0,0.001]
[1770677359977,14.07004056,2116.5,2116.0,0.001]
[1770677360179,1.01387296,2116.4,2116.0,0.001]
[1770677360379,1.01387296,2116.3,2116.0,0.001]
[1770677360586,6.2663688,2116.5,2116.0,6.91273623]
[1770677360765,1.01414114,2116.4,2116.0,6.91273623]
[1770677360967,1.01414114,2116.3,2116.0,6.91273623]
[1770677361267,6.2663688,2116.5,2116.0,6.91273623]
[1770677361468,1.01426013,2116.4,2116.0,6.91273623]
[1770677361667,1.01426013,2116.3,2116.0,6.91273623]
[1770677361976,6.2663688,2116.5,2116.0,6.91273623]
[1770677362178,1.01441347,2116.4,2116.0,6.91273623]
[1770677362368,1.01441347,2116.3,2116.0,6.91273623]
[1770677362570,6.2663688,2116.5,2116.0,6.91273623]
[1770677362893,1.01457418,2116.4,2116.0,6.91273623]
[1770677363112,1.01457418,2116.3,2116.0,6.91273623]
[1770677363270,1.0147513,2116.2,2116.0,6.91273623]
[1770677363472,7.44756495,2116.5,2116.0,6.91273623]
[1770677363661,1.01475272,2116.4,2116.0,6.91273623]